Cogmind - Beta 16 @@@ ROGUE MODE // 2025.11.07 @ 17:04:40 Player: StaticNoob Result: Destroyed by S-10 Pest with Light Assault Rifle Performance ------------- Evolutions (0) 0 Regions Visited (1) 200 Robots Destroyed (20) 100 Value Destroyed (387) 387 Prototype IDs (0) 0 Alien Tech Used (0) 0 Bonus (0) 0 TOTAL SCORE: 687 Bonus ------- None Cogmind --------- Core Integrity 0/250 Matter 144/300 Energy 99/100 System Corruption 0% Temperature Cool (0) Movement Walking (190) Ox1 Location -10/Materials Parts ------- > --- POWER (1) -------- (None) > --- PROPULSION (2) --- Aluminum Leg Aluminum Leg > --- UTILITY (2) ------ Large Storage Unit Seismic Detector > --- WEAPON (2) ------- Assault Rifle > --- INVENTORY (15) --- Aluminum Leg Aluminum Leg High-capacity Matter Pod (0) Tractor Beam Peak State ------------ > --- POWER ------------ Ion Engine > --- PROPULSION ------- Light Treads Light Treads > --- UTILITY ---------- Small Storage Unit Seismic Detector > --- WEAPON ----------- Assault Rifle Light Assault Rifle > --- INVENTORY -------- Ion Engine [Rating: 7] Favorites ----------- Power Ion Engine Engine Ion Engine Propulsion Light Treads Treads Light Treads Leg Aluminum Leg Wheel Compact Wheel Utility Seismic Detector Device Seismic Detector Storage Small Storage Unit Weapon Assault Rifle Ballistic Gun Assault Rifle Build | -11 -10 ------- Run | Yrd Mat Slots Evolved . | . . Power . | . . Propulsion . | . . Utility . | . . Weapon . | . . Parts Attached 15 | 7 8 Power 3 | 1 2 Engine 3 | 1 2 Core . | . . Reactor . | . . Propulsion 7 | 2 5 Treads 2 | 2 . Leg 4 | . 4 Wheel 1 | . 1 Hover . | . . Flight . | . . Utility 3 | 2 1 Device 1 | 1 . Storage 2 | 1 1 Processor . | . . Hackware . | . . Protection . | . . Artifact . | . . Weapon 2 | 2 . Energy Gun . | . . Energy Cannon . | . . Ballistic Gun 2 | 2 . Ballistic Cannon . | . . Launcher . | . . Special Weapon . | . . Impact Weapon . | . . Slashing Weapon . | . . Piercing Weapon . | . . Special Melee Weapon . | . . Unidentified Prototypes . | . . Parts Lost 6 | . 6 Power 3 | . 3 Propulsion 2 | . 2 Utility . | . . Weapon 1 | . 1 Highest Loss Streak 4 | . 4 To Critical Strikes . | . . Average Backups 1 | . 1 Power . | . . Propulsion . | . . Utility . | . 1 Weapon . | . . Tool/Special . | . . Unused Backups 2 | . 2 Power . | . . Propulsion . | . . Utility 2 | . 2 Weapon . | . . Tool/Special . | . . Average Slot Usage (%) 90 | . 90 Engine 9 | . 9 Treads 18 | . 18 Leg 4 | . 4 Wheel 2 | . 2 Device 14 | . 14 Storage 14 | . 14 Ballistic Gun 25 | . 25 Peak Build Rating 7 | 7 7 Average Rating 6 | 5 6 On Entrance 3 | . 7 Avg Prop Armor Cover (%) 10 | . 10 Naked Turns . | . . Heaviest Build 29 | 14 29 Greatest Support 40 | 40 40 Greatest Overweight (x) 7 | . 7 Average Overweight (x) . | . . Largest Inventory Capacity 15 | 8 15 Average Capacity 11 | 7 11 Most Carried 4 | 1 4 Average Carried 1 | . 1 Final Capacity 15 | 8 15 Final Carried 4 | 1 4 Class Distribution -------------------- 100% | Mutant Dominant Class ---------------- Mutant | -10/Materials Resources | -11 -10 ----------- Run | Yrd Mat Matter Collected 505 | 159 346 Remotely . | . . Salvage Created 481 | 49 432 Parts 47 | 10 37 Haulers Intercepted . | . . Recyclers Shooed . | . . Parts Field Recycled . | . . Retrieved Matter . | . . Parts Self-Destructed . | . . Prevented . | . . Parts Restored . | . . Kills | -11 -10 ------- Run | Yrd Mat Combat Hostiles Destroyed 14 | . 14 Guns 14 | . 14 Classes Destroyed 6 | 1 5 Worker 1 | . 1 Builder 1 | . 1 Tunneler 3 | 3 . Watcher 1 | . 1 Swarmer 7 | . 7 Grunt 7 | . 7 Best Kill Streak 5 | 2 5 Combat Bots Only 4 | . 4 Max Kills in Single Turn 1 | 1 1 Gunslinging . | . . Exploded . | . . Melee . | . . Uniques/NPCs Destroyed . | . . Combat | -11 -10 -------- Run | Yrd Mat Hostile Shots Fired 139 | . 139 Missed 29 | . 29 Hits 110 | . 110 Projectile 110 | . 110 Critical Strikes 1 | . 1 Damage Taken 1083 | . 1083 Core 253 | . 253 Absorbed by Shields . | . . Core Remaining (%) 100 | 100 . Volleys Fired 88 | 12 76 Largest 2 | 2 2 Hottest 40 | 40 40 Shots Fired 150 | 24 126 Gun 150 | 24 126 Cannon . | . . Launcher . | . . Special . | . . Kinetic 150 | 24 126 Thermal . | . . Explosive . | . . Electromagnetic . | . . Robot Hit Streak 14 | 4 14 Robot Miss Streak 8 | 3 8 Penetration Max . | . . Secondary Targets 4 | . 4 Max Gunslinging Chain 1 | . 1 Shots Hit Robots 89 | 13 76 Core Hits 32 | 3 29 Critical Kills . | . . Critical Parts Destroyed 1 | . 1 Critical Strikes 1 | . 1 Destroy 1 | . 1 Melee Attacks . | . . Impact . | . . Slashing . | . . Piercing . | . . Sneak Attacks . | . . Combat Hostiles . | . . Follow-up Attacks . | . . Damage Inflicted 997 | 139 858 Guns 994 | 139 855 Cannons . | . . Explosions . | . . Melee . | . . Ramming 3 | . 3 Kinetic 994 | 139 855 Thermal . | . . Explosive . | . . Electromagnetic . | . . Impact . | . . Slashing . | . . Piercing . | . . Highest Corruption . | . . Average Corruption . | . . Corruption Purged . | . . Corruption Blocked . | . . Overload Shots . | . . Overflow Damage . | . . Projectiles . | . . Explosions . | . . Melee . | . . Knockbacks . | . . Impact . | . . Kinetic . | . . Secondary . | . . Self-Inflicted Damage . | . . Shots . | . . Rammed 1 | . 1 Targets Rammed 1 | . 1 Kicked . | . . Crushed . | . . Highest Temperature 12 | . 12 Average Temperature 5 | . 5 Received Heat Transfer 357 | . 357 Siege Activations . | . . Martial Activations . | . . Shielding Activations . | . . Robots Disrupted . | . . Combat Hostiles . | . . Robots Corrupted . | . . Combat Hostiles . | . . Parts Fried . | . . Impact Corruptions . | . . Robots Melted . | . . Combat Hostiles . | . . Parts Melted . | . . Heat Transferred . | . . Parts Sabotaged . | . . Parts Stolen . | . . Parts Stripped . | . . Power Chain Reactions . | . . Alert | -11 -10 ------- Run | Yrd Mat Maximum Alert Level . | . . Low Security (%) 100 | 100 100 Level 1 . | . . Level 2 . | . . Level 3 . | . . Level 4 . | . . Level 5 . | . . High Security . | . . Max Security . | . . Peak Influence 125 | 5 125 Initial . | . . Average 47 | . 56 Influence Increases 437 | 15 422 Destroy 0b10 Robot/C 280 | . 280 Destroy 0b10 Robot/NC 30 | 15 15 Destroy Leader 62 | . 62 Successful Hack 5 | . 5 Disable Machine 15 | . 15 Lose Combat Pursuer 45 | . 45 Influence Decreases 334 | 15 319 Time Decay 274 | 15 259 Lost Part 60 | . 60 Squads Dispatched 3 | . 3 Investigation 1 | . 1 Extermination . | . . Reinforcement 2 | . 2 Assault . | . . Garrison . | . . Intercept . | . . Searches Triggered . | . . Construction Impeded . | . . Haulers Reinforced . | . . Active Scanning Responses . | . . Cargo Convoy Interrupts . | . . Stealth | -11 -10 --------- Run | Yrd Mat Distress Signals . | . . Communications Jammed . | . . Distress Signals . | . . Times Spotted 26 | . 26 Peak Tracking Total 5 | . 5 Tactical Retreats 4 | . 4 Traps | -11 -10 ------- Run | Yrd Mat Traps Triggered 2 | . 2 Indirectly . | . . Trap Hack Attempts . | . . Triggered . | . . Disarmed . | . . Reprogrammed . | . . Reused . | . . Traps Extracted . | . . Installed . | . . Triggered . | . . Machines | -11 -10 ---------- Run | Yrd Mat Machines Disabled 1 | . 1 Max in Single Turn 1 | . 1 Machines Repaired . | . . Machines Dismantled . | . . Machines Sabotaged . | . . Overloaded Fab Kills . | . . Hacking | -11 -10 --------- Run | Yrd Mat Machines Accessed 1 | . 1 Terminals 1 | . 1 Fabricators . | . . Repair Stations . | . . Recycling Units . | . . Scanalyzers . | . . Garrison Access . | . . Total Hacks 2 | . 2 Successful 1 | . 1 Failed 1 | . 1 Catastrophic . | . . Database Lockouts . | . . Manual 2 | . 2 Terminals 2 | . 2 Fabricators . | . . Repair Stations . | . . Recycling Units . | . . Scanalyzers . | . . Garrison Access . | . . Terminal Hacks . | . . Fabricator Hacks . | . . Repair Station Hacks . | . . Recycling Unit Hacks . | . . Scanalyzer . | . . Garrison Access Hacks . | . . Unauthorized Hacks 1 | . 1 Terminals 1 | . 1 Botnet 1 | . 1 Fabricators . | . . Repair Stations . | . . Recycling Units . | . . Scanalyzers . | . . Garrison Access . | . . Data Cores Recovered . | . . Used . | . . Hacking Detections 1 | . 1 Full Trace Events . | . . Feedback Events . | . . Feedback Blocked . | . . Robot Schematics Acquired . | . . Robots Built . | . . Authchips . | . . Time . | . . Total Robot Build Rating . | . . Part Schematics Acquired . | . . Parts Built . | . . Authchips . | . . Time . | . . Total Part Build Rating . | . . Part Studies Acquired . | . . Parts Repaired . | . . Time . | . . Parts Recycled . | . . Recycled Matter . | . . Retrieved Matter . | . . Retrieved Components . | . . Parts Scanalyzed . | . . Part Schematics Acquired . | . . Parts Damaged . | . . Bothacking | -11 -10 ------------ Run | Yrd Mat Used RIF Installer . | . . Robots Hacked . | . . Non-combat . | . . Combat . | . . Robot Hacks Applied . | . . Relay Couplers Released . | . . Fabnet Peak Effective % . | . . Robots Rewired . | . . Allies Hacked . | . . Hacks Repelled . | . . Allies | -11 -10 -------- Run | Yrd Mat Total Allies . | . . Largest Group . | . . Highest-Rated Group . | . . Highest-Rated Ally . | . . Total Orders . | . . Ally Attacks . | . . Total Damage . | . . Kills . | . . Allies Corrupted . | . . Allies Melted . | . . Intel | -11 -10 ------- Run | Yrd Mat Active Infowar (turns) 654 | 14 640 Seismic 654 | 14 640 Robot Analysis Total . | . . Derelict Logs Recovered . | . . Drone Launches . | . . Drone Recoveries . | . . Exploration | -11 -10 ------------- Run | Yrd Mat Turns Passed 755 | 115 640 Spaces Moved 307 | 47 260 Core 6 | 4 2 Treads 210 | 43 167 Legs 31 | . 31 Wheels 60 | . 60 Hover . | . . Flight . | . . Fastest Speed 50 | 50 115 Average Speed 157 | 150 159 Slowest Speed 400 | 160 400 Overloaded Moves . | . . Propulsion Burnouts . | . . Robots Hopped . | . . Potential Cave-ins . | . . Cave-ins Triggered . | . . Exploration Rate (%) 25 | 3 48 Regions Visited 1 Branch Regions . Pre-discovered Areas . | . . Known Exits Taken . | . . Unknown Exits Taken 1 | 1 . Scrap Searched . | . . Spaces Dug . | . . Terrain Destroyed . | . . Melee . | . . Projectile . | . . AOE . | . . Terrain Rammed . | . . Walls Destroyed . | . . Machines Disabled . | . . Actions | -11 -10 --------- Run | Yrd Mat Total 435 | 67 368 Wait 16 | . 16 Move 306 | 46 260 Hop . | . . Pick Up 5 | 2 3 Fast Attach 11 | 6 5 Attach 3 | 1 2 Detach . | . . Swap 3 | . 3 Drop 2 | . 2 Fire 88 | 12 76 Melee . | . . Ram . | . . Kick . | . . Crush 1 | . 1 Escape Stasis . | . . Rewire . | . . Trap . | . . Miscellaneous . | . . Route ------- -11/Scrapyard -10/Materials (discovered 3 exits: [*Mat x2] / [*Sub]) History --------- Turn | Location | Event 14 | -11/Scrapyard | Discovered new exit (range 16) 116 | -11/Scrapyard | Entered Materials 302 | -10/Materials | Build established: Mutant 492 | -10/Materials | Discovered new exit (range 9) 572 | -10/Materials | Lost 4 parts (2p2n) 649 | -10/Materials | Discovered new exit (range 16) 661 | -10/Materials | Core integrity fell below 50% 664 | -10/Materials | Discovered new exit (range 9) 700 | -10/Materials | Core integrity fell below 20% 716 | -10/Materials | Derelicts attacked the area 756 | -10/Materials | Destroyed by S-10 Pest with Light Assault Rifle Last Messages --------------- 00646_ U-05 Engineer lays Concrete. 00649_ EXIT=FOUND 00649_ Lgt. Assault Rifle destroyed. 00664_ EXIT=FOUND 00665_ U-05 Engineer lays Concrete. 00666_ U-05 Engineer builds a Wall. 00667_ T-07 Excavator is excavating. 00669_ Critical hit (Burn: +37). 00669_ U-05 Engineer lays Concrete. 00670_ U-05 Engineer builds a Wall. 00678_ G-47 Trooper destroyed. 00688_ U-05 Engineer destroyed. 00690_ G-34 Mercenary destroyed. 00713_ Dropped Com. Wheel. 00716_ ALERT: Derelict incursion detected, dispatching patrols to target area. 00718_ U-05 Engineer builds a Wall. 00722_ Acquired Aluminum Leg. 00733_ K-01 Serf collects debris. 00756_ S-10 Pest destroyed. Map ----- +----------------------------------------------------+ | ????# # """"" ## # #???????? | | ????# # """ ? ## """"" # #???????? | | ????#* ######???## """"" # #??###### | | ????#%!=#??????????? """"" # #?? # | | ????#=*=#????????????? # #? # | | ????#% ################+### #? ? | | ????#* [[ * # """ ? | | ????# % # """""? | | ????#= = "T" + """""? | | ????# ############### # """""? | | ????# #?????????????# ^ # """ ? | | ????# #???????####### #? ? | | ????# #???????# # ^ #? # | | ##### ######### # #?? # | | # # """ #??###### | | *== / # """ #???????? | | %%% # # """ #???????? | | ??###/## ##/### + ! #???????? | | ???? ?# #! [## # #???????? | | ???? ?# #*=%## # ##+######?????? | | ????? ?# # |!## # # #?????? | | ???????# # ## # # """"" #?????? | | ???????# # ## # # """"" #?????? | | ???????# # ## # # """"" #?????? | | ???????# #<########## # [ #?????? | | ???????# ###????????# @###+#########?? | | ??????? ???????????# # #?? | | ???????# ???????????# ! # #?? | | ???????# ???????????# s + !! #?? | | ???????# ?????????#####+##%s # !! #?? | | ???????# ?????????# #= # !! #?? | | ???????# ?????????# """ # # #?? | | ???????? < ?????????# """ # ########?? | | ????????????????????# """ # #????????? | | ????????????????????# # < #????????? | | ????????????????????# # #????????? | | ????????????????????############????????? | | ????????????????????????????????????????? | | ????????????????????????????????????????? | | ????????????????????????????????????????? | | ????????????????????????????????????????? | | ????????????????????????????????????????? | | | | | | | | | | | | | | | | | +----------------------------------------------------+ Best States ------------- Heat Dissipation 25 Energy Generation 10 Energy Capacity 250 Matter Stores 252 Matter Capacity 300 Sight Range 16 Terrain Scan Density 10 Evasion (%) 40 Recoil Reduction 2 Item Schematics ----------------- None Robot Schematics ------------------ None Fabricated ------------ Nothing Repaired ---------- Nothing Studied --------- None Alien Tech Used ----------------- None Achievements -------------- None Challenges ------------ None Game ------ Seed DispersionFissionMatrix Manual? 0 Play Time 00:07:30 Cumulative 231.7 hours Start 2025.11.07 @ 17:00:28 End 2025.11.07 @ 17:04:40 Sessions 1 Manual Loads 0 Difficulty Rogue Special Mode None Game No. 186 Rogue 186 Adventurer 0 Explorer 0 Win Type - Total 6 Types 4/0/1/1/0/0/0/0/0/0 Lore% 82 Gallery% 72 Achievement% 48 Wizard Run 0 Options --------- Layout 1 ASCII 0 Keyboard 0 Movement Numpad Keybinds 0 Fullscreen 1 Font 24/Smallcaps Map View 50x35 Zoom Use 0% Tactical HUD 1 Map Filters NONE Filters NONE Steam 1 RUN: 2f9dec41-be03-4c00-8e85-a2782dca80c9